[Event "Late-Titled-Tuesday-Blitz-June-25-2024"]
[Site "Chess.com"]
[Date "2024.06.25"]
[Round "1"]
[White "NikitaShnadrygin"]
[Black "patzer-reloaded"]
[Result "1-0"]
[WhiteElo "2730"]
[BlackElo "2432"]
[TimeControl "180+1"]
[EndTime "14:06:06 PDT"]
[Termination "NikitaShnadrygin won by resignation"]

1. e4 {[%clk 0:03:00.9]} 1... d6 {[%clk 0:02:58.3]} 2. d4 {[%clk 0:02:59.9]}
2... Nf6 {[%clk 0:02:57.3]} 3. Nc3 {[%clk 0:03:00.3]} 3... g6 {[%clk 0:02:57.2]}
4. f3 {[%clk 0:03:00.4]} 4... c6 {[%clk 0:02:55.3]} 5. Be3 {[%clk 0:03:00.8]}
5... Nbd7 {[%clk 0:02:55.4]} 6. Qd2 {[%clk 0:03:01.5]} 6... Qc7 {[%clk
0:02:55.5]} 7. O-O-O {[%clk 0:03:01.8]} 7... b5 {[%clk 0:02:53.7]} 8. g4 {[%clk
0:03:02.5]} 8... Nb6 {[%clk 0:02:31.6]} 9. g5 {[%clk 0:02:58.5]} 9... Nh5 {[%clk
0:02:25.3]} 10. Bd3 {[%clk 0:02:49.8]} 10... Bg7 {[%clk 0:02:17.4]} 11. Nce2
{[%clk 0:02:47.2]} 11... Rb8 {[%clk 0:01:49.2]} 12. Ng3 {[%clk 0:02:46.4]} 12...
Be6 {[%clk 0:01:36.9]} 13. Nxh5 {[%clk 0:02:45.6]} 13... gxh5 {[%clk 0:01:36.2]}
14. b3 {[%clk 0:02:42.5]} 14... Nc4 {[%clk 0:01:35.5]} 15. bxc4 {[%clk
0:02:31.8]} 15... bxc4 {[%clk 0:01:36.4]} 16. Be2 {[%clk 0:02:31]} 16... c5
{[%clk 0:01:21.4]} 17. Qc3 {[%clk 0:02:28.2]} 17... O-O {[%clk 0:01:08.9]} 18.
f4 {[%clk 0:02:04.8]} 18... Rb4 {[%clk 0:01:03.4]} 19. e5 {[%clk 0:02:00.6]}
19... Rfb8 {[%clk 0:00:58.5]} 20. Nf3 {[%clk 0:01:52.3]} 20... Rb2 {[%clk
0:00:29.3]} 21. dxc5 {[%clk 0:01:42.1]} 21... dxc5 {[%clk 0:00:28.1]} 22. Kd2
{[%clk 0:01:36.2]} 22... Bf5 {[%clk 0:00:25.9]} 23. Rc1 {[%clk 0:01:35.9]} 23...
Qc6 {[%clk 0:00:25]} 24. Ke1 {[%clk 0:01:32.2]} 24... Be4 {[%clk 0:00:22.2]} 25.
Kf2 {[%clk 0:01:31.5]} 25... Rxa2 {[%clk 0:00:08.9]} 26. Rhd1 {[%clk 0:01:30.8]}
26... Rbb2 {[%clk 0:00:04.9]} 27. Rd8+ {[%clk 0:01:21.2]} 27... Bf8 {[%clk
0:00:05.1]} 28. Ne1 {[%clk 0:01:21.6]} 28... Qe6 {[%clk 0:00:04.5]} 29. Bxc5
{[%clk 0:01:11.1]} 29... Qh3 {[%clk 0:00:03]} 30. Qxh3 {[%clk 0:01:10.1]} 1-0

[Event "Late-Titled-Tuesday-Blitz-June-25-2024"]
[Site "Chess.com"]
[Date "2024.06.25"]
[Round "1"]
[White "CM_rui"]
[Black "Boudicca64"]
[Result "1-0"]
[WhiteElo "2539"]
[BlackElo "1946"]
[TimeControl "180+1"]
[EndTime "14:06:07 PDT"]
[Termination "CM_rui won by checkmate"]

1. e4 {[%clk 0:02:52.3]} 1... g6 {[%clk 0:02:57.8]} 2. h4 {[%clk 0:02:51.4]}
2... h5 {[%clk 0:02:56]} 3. Nf3 {[%clk 0:02:50.8]} 3... Bg7 {[%clk 0:02:54.8]}
4. Bc4 {[%clk 0:02:51.1]} 4... d6 {[%clk 0:02:52.8]} 5. d4 {[%clk 0:02:46.7]}
5... Nf6 {[%clk 0:02:51.8]} 6. Ng5 {[%clk 0:02:44.6]} 6... O-O {[%clk 0:02:49]}
7. Nc3 {[%clk 0:02:44.3]} 7... c6 {[%clk 0:02:40.5]} 8. Be3 {[%clk 0:02:42.2]}
8... b5 {[%clk 0:02:38]} 9. Bb3 {[%clk 0:02:37.8]} 9... b4 {[%clk 0:02:29]} 10.
Ne2 {[%clk 0:02:37]} 10... Ba6 {[%clk 0:02:13.4]} 11. f3 {[%clk 0:02:28.9]}
11... Nbd7 {[%clk 0:02:11.2]} 12. Nf4 {[%clk 0:02:15.2]} 12... c5 {[%clk
0:01:51.7]} 13. dxc5 {[%clk 0:01:56.1]} 13... dxc5 {[%clk 0:01:48.8]} 14. Nxg6
{[%clk 0:01:25.5]} 14... c4 {[%clk 0:01:46.7]} 15. Nxf8 {[%clk 0:01:24.7]} 15...
Kxf8 {[%clk 0:01:40.7]} 16. Ba4 {[%clk 0:01:22.1]} 16... Nb6 {[%clk 0:01:23.2]}
17. Bc6 {[%clk 0:01:11.4]} 17... Qc7 {[%clk 0:01:15.5]} 18. Bxa8 {[%clk
0:01:06.1]} 18... c3 {[%clk 0:01:11.4]} 19. Bd5 {[%clk 0:00:48.6]} 19... cxb2
{[%clk 0:01:01.2]} 20. Rb1 {[%clk 0:00:48.4]} 20... e6 {[%clk 0:00:41.8]} 21.
Bxe6 {[%clk 0:00:47.1]} 21... Qc3+ {[%clk 0:00:38.5]} 22. Bd2 {[%clk 0:00:40.2]}
22... Qe5 {[%clk 0:00:37.1]} 23. Bxb4+ {[%clk 0:00:35.7]} 23... Kg8 {[%clk
0:00:22.1]} 24. Qd8+ {[%clk 0:00:35.1]} 24... Bf8 {[%clk 0:00:20]} 25. Qxf8#
{[%clk 0:00:34.7]} 1-0

[Event "Late-Titled-Tuesday-Blitz-June-25-2024"]
[Site "Chess.com"]
[Date "2024.06.25"]
[Round "1"]
[White "prxcess_brownie"]
[Black "ATM622"]
[Result "0-1"]
[WhiteElo "2209"]
[BlackElo "2570"]
[TimeControl "180+1"]
[EndTime "14:06:08 PDT"]
[Termination "ATM622 won by checkmate"]

1. c4 {[%clk 0:02:58.3]} 1... e5 {[%clk 0:02:59.5]} 2. Nc3 {[%clk 0:02:57.5]}
2... Nc6 {[%clk 0:02:58.2]} 3. g3 {[%clk 0:02:56.9]} 3... Nf6 {[%clk 0:02:58.3]}
4. Bg2 {[%clk 0:02:57]} 4... Bc5 {[%clk 0:02:53.8]} 5. Nf3 {[%clk 0:02:53.7]}
5... O-O {[%clk 0:02:53.4]} 6. O-O {[%clk 0:02:53]} 6... d6 {[%clk 0:02:50.8]}
7. d3 {[%clk 0:02:50.2]} 7... h6 {[%clk 0:02:49.4]} 8. h3 {[%clk 0:02:49.3]}
8... Re8 {[%clk 0:02:41.1]} 9. e4 {[%clk 0:02:47.2]} 9... Nd4 {[%clk 0:02:38.1]}
10. Kh2 {[%clk 0:02:44]} 10... a5 {[%clk 0:02:35.7]} 11. Rb1 {[%clk 0:02:27.8]}
11... c6 {[%clk 0:02:16.2]} 12. a3 {[%clk 0:02:20.2]} 12... b5 {[%clk
0:02:12.7]} 13. cxb5 {[%clk 0:02:18.3]} 13... Nxb5 {[%clk 0:02:06.6]} 14. Nxb5
{[%clk 0:02:08.2]} 14... cxb5 {[%clk 0:02:06.3]} 15. d4 {[%clk 0:01:47.1]} 15...
exd4 {[%clk 0:02:03.7]} 16. Nxd4 {[%clk 0:01:48]} 16... Bb7 {[%clk 0:01:56.2]}
17. Nxb5 {[%clk 0:01:38.4]} 17... Bxe4 {[%clk 0:01:53.9]} 18. Bxe4 {[%clk
0:01:34.7]} 18... Nxe4 {[%clk 0:01:54.2]} 19. Kg2 {[%clk 0:01:09.5]} 19... Qb6
{[%clk 0:01:54.1]} 20. a4 {[%clk 0:00:56.8]} 20... Nxf2 {[%clk 0:01:52.1]} 21.
Qf3 {[%clk 0:00:56.8]} 21... Ne4 {[%clk 0:01:23.1]} 22. Qxf7+ {[%clk 0:00:55.5]}
22... Kh8 {[%clk 0:01:23.2]} 23. b3 {[%clk 0:00:49.4]} 23... Qc6 {[%clk
0:01:11.5]} 24. Kh2 {[%clk 0:00:42.9]} 24... Nf6 {[%clk 0:00:58.5]} 25. Rb2
{[%clk 0:00:27]} 25... Rf8 {[%clk 0:00:58.1]} 26. Qg6 {[%clk 0:00:24.5]} 26...
Ng4+ {[%clk 0:00:52.7]} 27. hxg4 {[%clk 0:00:22.4]} 27... Rxf1 {[%clk
0:00:52.6]} 28. Bf4 {[%clk 0:00:13.2]} 28... Qh1# {[%clk 0:00:51.5]} 0-1

[Event "Late-Titled-Tuesday-Blitz-June-25-2024"]
[Site "Chess.com"]
[Date "2024.06.25"]
[Round "1"]
[White "VD_coach"]
[Black "Juliana_Figueira"]
[Result "1-0"]
[WhiteElo "2537"]
[BlackElo "1930"]
[TimeControl "180+1"]
[EndTime "14:06:08 PDT"]
[Termination "VD_coach won by resignation"]

1. Nf3 {[%clk 0:02:42.1]} 1... Nf6 {[%clk 0:02:59.3]} 2. d4 {[%clk 0:02:41.3]}
2... e6 {[%clk 0:02:56]} 3. c4 {[%clk 0:02:42.2]} 3... b6 {[%clk 0:02:53.6]} 4.
g3 {[%clk 0:02:40.1]} 4... Bb7 {[%clk 0:02:53]} 5. Bg2 {[%clk 0:02:40]} 5...
Bb4+ {[%clk 0:02:53.6]} 6. Bd2 {[%clk 0:02:39.3]} 6... Be7 {[%clk 0:02:52.4]} 7.
O-O {[%clk 0:02:39.3]} 7... O-O {[%clk 0:02:52.9]} 8. b4 {[%clk 0:02:38.8]} 8...
d5 {[%clk 0:02:52.9]} 9. c5 {[%clk 0:02:38.6]} 9... a5 {[%clk 0:02:49.6]} 10.
cxb6 {[%clk 0:02:30]} 10... cxb6 {[%clk 0:02:48]} 11. bxa5 {[%clk 0:02:30.1]}
11... bxa5 {[%clk 0:02:47.9]} 12. Nc3 {[%clk 0:02:29.9]} 12... Nbd7 {[%clk
0:02:43]} 13. Rb1 {[%clk 0:02:29.4]} 13... Rb8 {[%clk 0:02:42.6]} 14. Bf4 {[%clk
0:02:26.9]} 14... e5 {[%clk 0:02:39]} 15. Nxe5 {[%clk 0:02:21]} 15... Nxe5
{[%clk 0:02:31.5]} 16. Bxe5 {[%clk 0:02:20]} 16... Bd6 {[%clk 0:02:31.4]} 17.
Bxf6 {[%clk 0:01:29.2]} 17... Qxf6 {[%clk 0:02:27.8]} 18. Rxb7 {[%clk
0:01:29.8]} 18... Rxb7 {[%clk 0:02:26.2]} 19. Nxd5 {[%clk 0:01:30.4]} 19... Qd8
{[%clk 0:01:55]} 20. Nf6+ {[%clk 0:01:29.2]} 20... Qxf6 {[%clk 0:01:54.5]} 21.
Bxb7 {[%clk 0:01:30.1]} 21... Rb8 {[%clk 0:01:52.8]} 22. Bd5 {[%clk 0:01:15.7]}
22... Bb4 {[%clk 0:01:45.2]} 23. e3 {[%clk 0:01:11.1]} 23... Qd6 {[%clk
0:01:41.8]} 24. Qf3 {[%clk 0:01:10.7]} 24... Qd7 {[%clk 0:01:35]} 25. Rc1 {[%clk
0:01:02.3]} 25... Rd8 {[%clk 0:01:18.4]} 26. Bb3 {[%clk 0:00:52.1]} 26... a4
{[%clk 0:01:13.3]} 27. Bc4 {[%clk 0:00:50.8]} 27... Bf8 {[%clk 0:01:06.7]} 28.
Kg2 {[%clk 0:00:49.3]} 28... Rc8 {[%clk 0:00:53.3]} 29. Qxf7+ {[%clk 0:00:42.1]}
29... Qxf7 {[%clk 0:00:49.9]} 30. Bxf7+ {[%clk 0:00:43]} 30... Kxf7 {[%clk
0:00:32.5]} 31. Rxc8 {[%clk 0:00:43.9]} 31... Ke6 {[%clk 0:00:32.5]} 32. Rxf8
{[%clk 0:00:42.2]} 1-0

[Event "Late-Titled-Tuesday-Blitz-June-25-2024"]
[Site "Chess.com"]
[Date "2024.06.25"]
[Round "1"]
[White "Davidalhesa2007"]
[Black "ShimogaTactician"]
[Result "0-1"]
[WhiteElo "1909"]
[BlackElo "2535"]
[TimeControl "180+1"]
[EndTime "14:06:08 PDT"]
[Termination "ShimogaTactician won by resignation"]

1. d4 {[%clk 0:02:53.2]} 1... Nf6 {[%clk 0:02:58.1]} 2. Nc3 {[%clk 0:02:53.3]}
2... d5 {[%clk 0:02:57.3]} 3. Bf4 {[%clk 0:02:53.8]} 3... c6 {[%clk 0:02:57.1]}
4. e3 {[%clk 0:02:53.6]} 4... Qb6 {[%clk 0:02:57.7]} 5. Rb1 {[%clk 0:02:53]}
5... Bf5 {[%clk 0:02:56.6]} 6. Nf3 {[%clk 0:02:53.4]} 6... Nbd7 {[%clk 0:02:56]}
7. Bd3 {[%clk 0:02:50.1]} 7... e6 {[%clk 0:02:55.4]} 8. Ne5 {[%clk 0:02:46.5]}
8... Be7 {[%clk 0:02:48.2]} 9. g4 {[%clk 0:02:45.7]} 9... Nxe5 {[%clk
0:02:41.7]} 10. gxf5 {[%clk 0:02:41.5]} 10... Nxd3+ {[%clk 0:02:35]} 11. Qxd3
{[%clk 0:02:42.4]} 11... a6 {[%clk 0:02:15.4]} 12. O-O {[%clk 0:02:19.8]} 12...
exf5 {[%clk 0:02:06]} 13. Qxf5 {[%clk 0:02:19.1]} 13... O-O {[%clk 0:02:05.6]}
14. Bg5 {[%clk 0:02:12.5]} 14... Qd8 {[%clk 0:02:03]} 15. Kh1 {[%clk 0:02:00]}
15... g6 {[%clk 0:02:02.8]} 16. Qf3 {[%clk 0:01:48.7]} 16... b5 {[%clk 0:02:00]}
17. Ne2 {[%clk 0:01:36.9]} 17... Ne4 {[%clk 0:01:59.8]} 18. Bxe7 {[%clk
0:01:29.2]} 18... Qxe7 {[%clk 0:02:00.7]} 19. Rbd1 {[%clk 0:01:25]} 19... Qb4
{[%clk 0:01:49.7]} 20. b3 {[%clk 0:01:07]} 20... a5 {[%clk 0:01:34.7]} 21. c3
{[%clk 0:00:44.1]} 21... Qa3 {[%clk 0:01:31.4]} 22. Ng3 {[%clk 0:00:38.2]} 22...
Nxc3 {[%clk 0:01:28.2]} 23. Rc1 {[%clk 0:00:36.1]} 23... Qb4 {[%clk 0:01:28.4]}
24. Ne2 {[%clk 0:00:26]} 24... Ne4 {[%clk 0:01:24.8]} 25. Rg1 {[%clk 0:00:18.3]}
25... Qd6 {[%clk 0:01:22.4]} 26. Nf4 {[%clk 0:00:15.5]} 26... a4 {[%clk
0:01:21.4]} 27. b4 {[%clk 0:00:10.3]} 27... a3 {[%clk 0:01:16.6]} 28. Nh5 {[%clk
0:00:08.3]} 28... Kh8 {[%clk 0:01:12.6]} 29. Nf4 {[%clk 0:00:08.1]} 29... Ra4
{[%clk 0:01:07.4]} 30. Qh3 {[%clk 0:00:04.1]} 30... Nxf2+ {[%clk 0:01:06.9]} 0-1

[Event "Late-Titled-Tuesday-Blitz-June-25-2024"]
[Site "Chess.com"]
[Date "2024.06.25"]
[Round "1"]
[White "hoshiboshi"]
[Black "vova-79"]
[Result "0-1"]
[WhiteElo "2252"]
[BlackElo "2603"]
[TimeControl "180+1"]
[EndTime "14:06:10 PDT"]
[Termination "vova-79 won on time"]

1. e4 {[%clk 0:02:59.2]} 1... e6 {[%clk 0:02:56.7]} 2. d4 {[%clk 0:02:58.7]}
2... d5 {[%clk 0:02:56.9]} 3. e5 {[%clk 0:02:58.3]} 3... c5 {[%clk 0:02:56.5]}
4. c3 {[%clk 0:02:56.5]} 4... Nc6 {[%clk 0:02:51.1]} 5. Nf3 {[%clk 0:02:56.5]}
5... Bd7 {[%clk 0:02:51.7]} 6. Be2 {[%clk 0:02:55.8]} 6... f6 {[%clk 0:02:51.2]}
7. O-O {[%clk 0:02:45]} 7... Qb6 {[%clk 0:02:50.2]} 8. dxc5 {[%clk 0:02:17.3]}
8... Bxc5 {[%clk 0:02:51.1]} 9. b4 {[%clk 0:02:11]} 9... Be7 {[%clk 0:02:48.4]}
10. Bf4 {[%clk 0:01:51.5]} 10... fxe5 {[%clk 0:02:44]} 11. Nxe5 {[%clk
0:01:48.5]} 11... Nxe5 {[%clk 0:02:42.7]} 12. Bxe5 {[%clk 0:01:47.7]} 12... Bf6
{[%clk 0:02:43.3]} 13. Qd4 {[%clk 0:01:09.8]} 13... Qxd4 {[%clk 0:02:39.7]} 14.
cxd4 {[%clk 0:01:08.6]} 14... Bxe5 {[%clk 0:02:37.6]} 15. dxe5 {[%clk
0:01:08.6]} 15... Rc8 {[%clk 0:02:37.5]} 16. Na3 {[%clk 0:00:56.3]} 16... Nh6
{[%clk 0:02:17.9]} 17. Rac1 {[%clk 0:00:54.6]} 17... Ke7 {[%clk 0:02:14.8]} 18.
g4 {[%clk 0:00:33.5]} 18... g5 {[%clk 0:02:07.9]} 19. Kg2 {[%clk 0:00:30.7]}
19... Nf7 {[%clk 0:02:05.6]} 20. Nb5 {[%clk 0:00:17.5]} 20... Bxb5 {[%clk
0:01:59.5]} 21. Bxb5 {[%clk 0:00:18.4]} 21... Nxe5 {[%clk 0:01:59.1]} 22. Kg3
{[%clk 0:00:14.4]} 22... Ng6 {[%clk 0:01:33.6]} 23. Rfe1 {[%clk 0:00:07.3]}
23... Kd6 {[%clk 0:01:31.8]} 24. Bd3 {[%clk 0:00:05.6]} 24... Nf4 {[%clk
0:01:27.8]} 25. Rxc8 {[%clk 0:00:04.3]} 25... Rxc8 {[%clk 0:01:25.9]} 26. Bb1
{[%clk 0:00:02.3]} 26... h6 {[%clk 0:01:21.7]} 27. f3 {[%clk 0:00:01.9]} 27...
Rc4 {[%clk 0:01:18.6]} 28. a3 {[%clk 0:00:01.6]} 28... Rc3 {[%clk 0:01:18.2]}
29. h4 {[%clk 0:00:01.3]} 29... Rxa3 {[%clk 0:01:15.5]} 30. hxg5 {[%clk
0:00:01.4]} 30... hxg5 {[%clk 0:01:16.4]} 31. Rh1 {[%clk 0:00:01.7]} 31... Rb3
{[%clk 0:01:16.6]} 32. Bc2 {[%clk 0:00:01]} 32... Rb2 {[%clk 0:01:16.9]} 0-1

[Event "Late-Titled-Tuesday-Blitz-June-25-2024"]
[Site "Chess.com"]
[Date "2024.06.25"]
[Round "1"]
[White "Bryanl106"]
[Black "Kaustubh_Kodihalli"]
[Result "1-0"]
[WhiteElo "2754"]
[BlackElo "2445"]
[TimeControl "180+1"]
[EndTime "14:06:11 PDT"]
[Termination "Bryanl106 won on time"]

1. e4 {[%clk 0:03:00]} 1... c5 {[%clk 0:02:58.6]} 2. Nf3 {[%clk 0:02:59.8]} 2...
Nc6 {[%clk 0:02:58.9]} 3. d4 {[%clk 0:02:58.4]} 3... cxd4 {[%clk 0:02:59.8]} 4.
Nxd4 {[%clk 0:02:59]} 4... Nf6 {[%clk 0:02:59.9]} 5. Nc3 {[%clk 0:02:59.2]} 5...
e5 {[%clk 0:03:00.2]} 6. Ndb5 {[%clk 0:02:59.5]} 6... d6 {[%clk 0:03:00.8]} 7.
Bg5 {[%clk 0:02:59.4]} 7... a6 {[%clk 0:03:01.1]} 8. Na3 {[%clk 0:02:59.7]} 8...
b5 {[%clk 0:03:01.3]} 9. Nd5 {[%clk 0:03:00.4]} 9... Be7 {[%clk 0:03:01.6]} 10.
Bxf6 {[%clk 0:03:01]} 10... Bxf6 {[%clk 0:03:02.3]} 11. c3 {[%clk 0:03:01.7]}
11... O-O {[%clk 0:03:02.1]} 12. Nc2 {[%clk 0:03:02.3]} 12... Bg5 {[%clk
0:03:02.4]} 13. a4 {[%clk 0:02:57.1]} 13... bxa4 {[%clk 0:03:03.3]} 14. Ncb4
{[%clk 0:02:57.6]} 14... Nxb4 {[%clk 0:02:59.7]} 15. cxb4 {[%clk 0:02:55]} 15...
Bd7 {[%clk 0:02:54.2]} 16. Be2 {[%clk 0:02:47.2]} 16... Rb8 {[%clk 0:02:44.7]}
17. Bxa6 {[%clk 0:02:42.3]} 17... Bc6 {[%clk 0:02:35.8]} 18. Rxa4 {[%clk
0:02:39.6]} 18... Bxa4 {[%clk 0:02:16.3]} 19. Qxa4 {[%clk 0:02:40.5]} 19... Qe8
{[%clk 0:02:04.8]} 20. b5 {[%clk 0:02:34.7]} 20... Bd8 {[%clk 0:01:59.4]} 21.
O-O {[%clk 0:02:30.3]} 21... Bb6 {[%clk 0:01:58.7]} 22. Qc4 {[%clk 0:02:29.7]}
22... Bd4 {[%clk 0:01:51.6]} 23. b4 {[%clk 0:02:29]} 23... Kh8 {[%clk
0:01:45.3]} 24. Qc6 {[%clk 0:02:28.7]} 24... Qe6 {[%clk 0:01:31.3]} 25. b6
{[%clk 0:02:20.7]} 25... f5 {[%clk 0:01:29.6]} 26. b7 {[%clk 0:01:59.1]} 26...
fxe4 {[%clk 0:01:25.8]} 27. Nc7 {[%clk 0:01:59.3]} 27... Qf7 {[%clk 0:01:02.9]}
28. Nb5 {[%clk 0:01:51]} 28... Bxf2+ {[%clk 0:00:28.9]} 29. Kh1 {[%clk 0:01:51]}
29... e3 {[%clk 0:00:29.4]} 30. Nxd6 {[%clk 0:01:49.5]} 30... Qe6 {[%clk
0:00:18.5]} 31. Bc4 {[%clk 0:01:48.2]} 31... Qe7 {[%clk 0:00:06.4]} 32. Rd1
{[%clk 0:01:34.8]} 32... Qf6 {[%clk 0:00:06.1]} 33. g3 {[%clk 0:01:21]} 33...
Qe7 {[%clk 0:00:04.1]} 34. Kg2 {[%clk 0:01:20.6]} 34... Rbd8 {[%clk 0:00:02.4]}
35. Nf7+ {[%clk 0:01:18.1]} 35... Rxf7 {[%clk 0:00:02.2]} 36. Rxd8+ {[%clk
0:01:18.8]} 36... Qxd8 {[%clk 0:00:02.7]} 37. Bxf7 {[%clk 0:01:19.1]} 37... e2
{[%clk 0:00:02.1]} 38. Qc8 {[%clk 0:01:17]} 1-0

[Event "Late-Titled-Tuesday-Blitz-June-25-2024"]
[Site "Chess.com"]
[Date "2024.06.25"]
[Round "1"]
[White "DenLaz"]
[Black "Slovak_fighter2000"]
[Result "1-0"]
[WhiteElo "3118"]
[BlackElo "2524"]
[TimeControl "180+1"]
[EndTime "14:06:12 PDT"]
[Termination "DenLaz won on time"]

1. d4 {[%clk 0:03:00.9]} 1... Nf6 {[%clk 0:02:59.7]} 2. c4 {[%clk 0:03:00.8]}
2... e6 {[%clk 0:02:58.7]} 3. Nf3 {[%clk 0:03:01.2]} 3... d5 {[%clk 0:02:57.9]}
4. g3 {[%clk 0:03:01.6]} 4... Bb4+ {[%clk 0:02:55.1]} 5. Bd2 {[%clk 0:03:01.5]}
5... Be7 {[%clk 0:02:55.7]} 6. Bg2 {[%clk 0:03:01.9]} 6... O-O {[%clk
0:02:56.3]} 7. Qc2 {[%clk 0:03:01.1]} 7... c6 {[%clk 0:02:56.7]} 8. Bf4 {[%clk
0:03:01.2]} 8... Nbd7 {[%clk 0:02:50.8]} 9. O-O {[%clk 0:03:01]} 9... b6 {[%clk
0:02:45.7]} 10. cxd5 {[%clk 0:02:59.7]} 10... cxd5 {[%clk 0:02:46.6]} 11. Rc1
{[%clk 0:02:59.7]} 11... Bb7 {[%clk 0:02:36]} 12. Bc7 {[%clk 0:02:59.9]} 12...
Qe8 {[%clk 0:02:30.1]} 13. Qb3 {[%clk 0:03:00.3]} 13... Ne4 {[%clk 0:02:14.1]}
14. Na3 {[%clk 0:03:00.4]} 14... Bxa3 {[%clk 0:01:52.3]} 15. Qxa3 {[%clk
0:02:58.2]} 15... f6 {[%clk 0:01:42.5]} 16. Rc2 {[%clk 0:02:47.9]} 16... Qf7
{[%clk 0:01:39.7]} 17. Rac1 {[%clk 0:02:47.6]} 17... Rfc8 {[%clk 0:01:35.7]} 18.
Bf4 {[%clk 0:02:44.5]} 18... g5 {[%clk 0:01:19.8]} 19. Be3 {[%clk 0:02:43.1]}
19... Nf8 {[%clk 0:01:06.2]} 20. Ne1 {[%clk 0:02:38.3]} 20... Qd7 {[%clk
0:01:00]} 21. Nd3 {[%clk 0:02:33.5]} 21... a5 {[%clk 0:00:55.9]} 22. Qb3 {[%clk
0:02:31.4]} 22... Qd8 {[%clk 0:00:41.7]} 23. Bh3 {[%clk 0:02:25.2]} 23... Rxc2
{[%clk 0:00:36.5]} 24. Rxc2 {[%clk 0:02:24]} 24... Rc8 {[%clk 0:00:36.4]} 25.
Rxc8 {[%clk 0:02:18.9]} 25... Bxc8 {[%clk 0:00:37.3]} 26. Qc2 {[%clk 0:02:18.7]}
26... Bd7 {[%clk 0:00:35.1]} 27. f3 {[%clk 0:02:16.7]} 27... Nd6 {[%clk
0:00:35.1]} 28. b3 {[%clk 0:02:16.8]} 28... Qc8 {[%clk 0:00:34.3]} 29. Qd2
{[%clk 0:02:16.7]} 29... Kf7 {[%clk 0:00:26.8]} 30. Bf1 {[%clk 0:02:02.5]} 30...
h6 {[%clk 0:00:26.6]} 31. a4 {[%clk 0:01:56.9]} 31... Kg7 {[%clk 0:00:27]} 32.
Qd1 {[%clk 0:01:51.6]} 32... Ng6 {[%clk 0:00:26.9]} 33. Bc1 {[%clk 0:01:51.8]}
33... Ne7 {[%clk 0:00:26.8]} 34. Qd2 {[%clk 0:01:49.4]} 34... Ng6 {[%clk
0:00:25.2]} 35. Ba3 {[%clk 0:01:47.9]} 35... Qc7 {[%clk 0:00:24.1]} 36. e3
{[%clk 0:01:47.6]} 36... Nf5 {[%clk 0:00:23.4]} 37. Kf2 {[%clk 0:01:47.9]} 37...
h5 {[%clk 0:00:21.7]} 38. Qc1 {[%clk 0:01:47.4]} 38... Qxc1 {[%clk 0:00:19.4]}
39. Nxc1 {[%clk 0:01:48.3]} 39... h4 {[%clk 0:00:18]} 40. g4 {[%clk 0:01:48]}
40... Nh6 {[%clk 0:00:16.8]} 41. Bd6 {[%clk 0:01:48]} 41... f5 {[%clk 0:00:10]}
42. h3 {[%clk 0:01:47.4]} 42... fxg4 {[%clk 0:00:02.8]} 43. hxg4 {[%clk
0:01:47.5]} 43... Nf7 {[%clk 0:00:02.6]} 44. Bc7 {[%clk 0:01:48]} 44... e5
{[%clk 0:00:03.1]} 45. Bxb6 {[%clk 0:01:47.7]} 45... exd4 {[%clk 0:00:03.6]} 46.
exd4 {[%clk 0:01:47.1]} 46... Nf4 {[%clk 0:00:03.5]} 47. Bxa5 {[%clk 0:01:46.6]}
47... h3 {[%clk 0:00:02.8]} 48. Kg3 {[%clk 0:01:46.7]} 48... Nd6 {[%clk
0:00:01.3]} 49. Bd2 {[%clk 0:01:46.6]} 1-0